bitfinex/quotes_ETHUSD_20220113
["timestamp","ask_amount","ask_price","bid_price","bid_amount"]
[1642116835073,0.00852636,3261.2,3261.1,0.039271]
[1642116835475,0.00852636,3261.2,3260.8,1.29084897]
[1642116835681,0.00852636,3261.2,3260.9,0.034705]
[1642116835875,0.76677,3261.1,3260.9,0.034705]
[1642116836079,0.76677,3261.1,3260.8,1.29084897]
[1642116836080,0.77472793,3261.1,3260.8,1.29084897]
[1642116836276,0.00738951,3261.0,3260.8,1.29084897]
[1642116836675,0.76677,3261.1,3260.8,1.32049497]
[1642116836676,0.00682109,3260.9,3260.8,1.32049497]
[1642116837076,0.00682109,3260.9,3260.8,1.35374897]
[1642116838079,0.00682109,3260.9,3260.8,1.35501997]
[1642116839825,0.00682109,3260.9,3260.8,1.32049497]
[1642116840025,0.00682109,3260.9,3260.8,1.29084897]
[1642116840226,0.00682109,3260.9,3260.6,0.1226]
[1642116840429,0.00682109,3260.9,3259.5,0.027278]
[1642116840430,0.88945,3260.8,3259.5,0.027278]
[1642116840624,1.48945,3260.8,3259.9,1.11649148]
[1642116840825,0.00568424,3260.7,3259.9,1.11649148]
[1642116841026,0.1226,3260.6,3259.9,1.15003348]
[1642116841228,0.12771582,3260.6,3260.1,0.078542]
[1642116841528,0.00454739,3260.5,3260.3,0.039271]
[1642116841725,0.00454739,3260.5,3260.4,0.045463]
[1642116841925,3.1519458,3261.3,3260.4,0.045463]
[1642116841926,0.1226,3261.2,3260.4,0.045463]
[1642116842125,0.1226,3261.2,3260.7,0.039271]
[1642116842373,0.13112636,3261.2,3261.1,1.42957617]
[1642116843174,0.00852636,3261.2,3261.1,1.42957617]
[1642116848028,0.76678,3261.1,3260.9,0.027278]
[1642116848229,0.1226,3261.0,3260.6,0.1226]
[1642116848433,0.00738951,3261.0,3260.6,0.1226]
[1642116848638,0.12942109,3260.9,3260.6,0.1226]
[1642116848832,0.12942109,3260.9,3260.6,0.1516]
[1642116849134,0.00625266,3260.8,3260.7,1.36589511]
[1642116849431,0.60625266,3260.8,3260.7,1.36589511]
[1642116849730,0.30625266,3260.8,3260.7,1.36589511]
[1642116849988,0.60625266,3260.8,3260.7,1.36589511]
[1642116851393,0.60625266,3260.8,3260.6,0.1226]
[1642116851594,0.72885266,3260.8,3260.6,0.1226]
[1642116851794,0.00568424,3260.7,3260.6,0.1226]
[1642116852390,0.00568424,3260.7,3260.6,1.34450302]
[1642116854342,0.00568424,3260.7,3260.6,2.40808041]
[1642116856640,0.00568424,3260.7,3260.6,1.18617739]
[1642116857778,0.77263424,3260.7,3260.5,0.027278]
[1642116858177,0.00511582,3260.6,3260.5,0.027278]
[1642116858678,0.00511582,3260.6,3260.4,0.027278]
[1642116858877,0.00511582,3260.6,3260.4,0.027826]
[1642116859079,0.00454739,3260.5,3260.4,0.027826]
[1642116859481,0.00511582,3260.5,3260.4,1.36467649]
[1642116861731,0.00511582,3260.5,3260.4,1.39599149]
[1642116861932,0.00511582,3260.5,3260.4,1.36467649]
[1642116862932,0.00511582,3260.5,3260.4,2.51867149]
[1642116864434,0.00511582,3260.5,3260.4,2.81867149]
[1642116866982,0.00511582,3260.5,3260.4,2.48727649]
[1642116867381,0.00511582,3260.5,3260.4,1.48727649]
[1642116867682,0.00511582,3260.5,3260.4,1.45945049]
[1642116868182,0.00511582,3260.5,3260.4,1.48977849]
[1642116868381,0.00511582,3260.5,3260.4,1.48736649]
[1642116869032,0.00511582,3260.5,3260.4,1.36476649]
[1642116870033,0.00511582,3260.5,3260.4,4.73701053]
[1642116870231,0.00511582,3260.5,3260.4,4.73943193]
[1642116870431,0.00511582,3260.5,3260.4,4.75301979]
[1642116870630,0.00511582,3260.5,3260.4,1.36476649]
[1642116870832,0.00511582,3260.5,3260.4,4.74072585]
[1642116871432,0.00511582,3260.5,3260.4,1.36476649]
[1642116871833,0.00511582,3260.5,3260.4,4.75853419]
[1642116872879,0.00511582,3260.5,3260.4,5.79086919]
[1642116873482,0.00511582,3260.5,3260.4,5.91346919]
[1642116874684,0.00511582,3260.5,3260.4,2.51970149]
[1642116875086,0.00511582,3260.5,3260.4,5.15460778]
[1642116875483,0.00511582,3260.5,3260.4,8.55405127]
[1642116875883,0.00511582,3260.5,3260.4,5.15460778]
[1642116876331,0.00511582,3260.5,3260.4,2.51970149]
[1642116876531,0.00511582,3260.5,3260.4,6.00774978]
[1642116880085,1.5335102,3262.1,3260.4,7.55544978]
[1642116880293,0.133511,3262.4,3261.3,0.01238871]
[1642116880486,0.133511,3262.4,3261.7,0.039271]
[1642116880685,0.1226,3262.4,3261.9,0.038741]
[1642116880886,0.1226,3262.4,3261.9,0.070429]
[1642116881185,1.54137842,3262.4,3262.1,2.9468966]
[1642116881884,0.1226,3262.4,3262.1,2.9468966]
[1642116882084,0.88907,3262.4,3262.1,2.9756706]
[1642116883184,0.88907,3262.4,3262.0,0.027278]
[1642116883485,0.88907,3262.4,3261.6,0.027278]
[1642116883486,0.76661,3261.9,3261.6,0.027278]
[1642116883731,0.76661,3261.9,3261.6,0.028292]
[1642116883930,0.00682108,3261.8,3261.6,0.028292]
[1642116884330,0.00625265,3261.7,3261.6,0.028292]
[1642116884531,0.00625265,3261.7,3261.6,1.30178122]
[1642116884730,0.00625265,3261.7,3261.6,1.27348922]
[1642116884931,0.00625265,3261.7,3261.5,1.261456]
[1642116885332,0.00568423,3261.6,3261.5,1.261456]
[1642116886132,0.00568423,3261.6,3261.5,6.0750276]
[1642116886331,0.00568423,3261.6,3261.5,2.97283694]
[1642116886532,0.00568423,3261.6,3261.5,3.97283694]
[1642116887133,0.00568423,3261.6,3261.5,2.67283694]
[1642116887378,0.00568423,3261.6,3261.5,2.64555894]
[1642116887581,0.00568423,3261.6,3261.5,1.2069]
[1642116887882,0.00568423,3261.6,3261.5,2.63420056]
[1642116888281,0.30568423,3261.6,3261.5,2.63420056]
[1642116888481,0.00568423,3261.6,3261.5,3.75725573]
[1642116888784,0.9803386,3263.5,3261.5,9.47345183]
[1642116888983,0.9803386,3263.5,3263.1,0.0124626]
[1642116889184,0.9803386,3263.5,3263.2,0.03796681]
[1642116889383,0.9803386,3263.5,3263.4,0.045463]
[1642116889586,2.57544849,3263.5,3263.4,0.045463]
[1642116889783,2.58624854,3263.5,3262.6,1.1525]
[1642116889981,2.58624854,3263.5,3262.9,0.054556]
[1642116889982,0.1225,3263.4,3262.9,0.054556]
[1642116890384,0.0096632,3263.3,3262.9,0.054556]
[1642116890584,0.1225,3263.2,3262.9,0.054556]
[1642116890788,0.13159478,3263.2,3262.9,0.054556]
[1642116890985,0.00852635,3263.1,3262.9,0.027278]
[1642116891235,0.00852635,3263.1,3262.8,0.027278]
[1642116891434,0.00795793,3263.0,3262.8,0.027278]
[1642116891830,0.0073895,3262.9,3262.8,0.027278]
[1642116892030,0.0073895,3262.9,3262.7,0.027278]
[1642116892231,0.00852635,3262.9,3262.7,0.027278]
[1642116892531,0.00682108,3262.8,3262.7,0.027882]
[1642116892730,0.00682108,3262.8,3262.6,1.179778]
[1642116892931,0.00795793,3262.8,3262.6,1.179778]
[1642116893232,0.00625266,3262.7,3262.6,1.179778]
[1642116893435,0.00625266,3262.7,3262.4,3.845678]
[1642116893731,0.00625266,3262.7,3262.4,0.027278]
[1642116893732,0.00568423,3262.6,3262.4,0.027278]
[1642116893931,1.19882586,3262.5,3262.4,0.027278]
[1642116894130,1.20394167,3262.5,3262.4,0.027278]
[1642116894731,1.50394167,3262.5,3262.4,0.060756]
[1642116894978,1.50394167,3262.5,3262.3,0.027278]
[1642116895178,1.50394167,3262.5,3262.2,0.027278]
[1642116895379,0.00454739,3262.4,3262.2,0.027278]
[1642116895779,1.19882586,3262.5,3262.3,0.035678]
[1642116895983,1.19882586,3262.5,3262.4,0.044588]
[1642116896381,1.19882586,3262.5,3262.4,0.02925]
[1642116896582,1.19882586,3262.5,3262.2,0.027278]
[1642116896782,1.19882586,3262.5,3262.1,0.027278]
[1642116896982,0.027278,3262.2,3262.1,0.027278]
[1642116897384,0.03068854,3262.2,3262.1,0.027278]
[1642116897582,0.03068854,3262.2,3262.1,0.027823]
[1642116899835,0.03068854,3262.2,3262.1,0.059356]
[1642116901738,0.03068854,3262.2,3262.1,0.027823]
[1642116901939,0.03068854,3262.2,3262.1,0.060051]
[1642116904585,0.03068854,3262.2,3262.0,3.32692764]
[1642116904785,0.03068854,3262.2,3262.0,3.26687664]
[1642116904988,0.03068854,3262.2,3261.9,2.73254184]
[1642116904989,0.00284212,3262.1,3261.9,2.73254184]
[1642116905189,0.00284212,3262.1,3261.7,4.57332]
[1642116905190,0.1226,3262.0,3261.7,3.8069]
[1642116905387,0.12487369,3262.0,3261.3,3.60962338]
[1642116905585,0.12487369,3262.0,3261.2,1.2107]
[1642116905586,0.00170527,3261.9,3261.2,1.2107]
[1642116905787,0.1226,3261.8,3261.4,0.00113685]
[1642116905985,0.00113685,3261.8,3261.3,0.00170527]
[1642116906237,1.18519466,3261.7,3261.3,0.00170527]
[1642116908333,1.18883689,3261.4,3261.3,0.00170527]
[1642116908532,1.18883689,3261.4,3261.3,3.31430358]
[1642116908733,1.18883689,3261.4,3261.3,0.00170527]
[1642116909233,1.18883689,3261.4,3261.2,1.00227369]
[1642116909432,1.18883689,3261.4,3261.2,1.12487369]
[1642116909632,1.18883689,3261.4,3261.3,0.00170527]
[1642116913643,1.18883689,3261.4,3261.1,0.00284212]
[1642116915038,1.18883689,3261.4,3261.2,1.53719903]
[1642116915337,1.18883689,3261.4,3261.2,1.57494421]
[1642116915538,1.18883689,3261.4,3261.3,0.00170527]
[1642116917041,1.18883689,3261.4,3261.3,1.5389043]
[1642116919692,1.18883689,3261.4,3261.3,0.00170527]
[1642116920093,1.18883689,3261.4,3261.2,0.00227369]
[1642116920295,0.1226,3261.3,3261.2,0.00227369]
[1642116921534,1.78883689,3261.4,3261.2,0.00227369]
[1642116923133,1.18883689,3261.4,3261.2,0.00227369]
[1642116926587,1.18883689,3261.4,3260.9,0.69886457]
[1642116926990,1.18883689,3261.4,3261.0,0.00113685]
[1642116928292,1.28866532,3261.2,3261.0,0.00113685]
[1642116929140,1.18883689,3261.4,3261.1,0.01230132]
[1642116929341,1.18883689,3261.4,3261.2,0.1226]
[1642116932046,1.48883689,3261.4,3261.2,0.1226]
[1642116932486,0.1226,3261.3,3261.2,0.1226]
[1642116932685,1.55424736,3261.3,3261.2,0.1226]
[1642116933886,1.43164736,3261.3,3261.0,0.00113685]
[1642116934284,1.43164736,3261.3,3260.8,0.1226]
[1642116934285,1.43164736,3261.3,3260.9,0.76832527]
[1642116935686,1.43164736,3261.3,3261.0,0.1226]
[1642116935988,1.18883689,3261.4,3261.2,0.76647]
[1642116936240,1.18883689,3261.4,3261.3,0.1226]
[1642116936648,1.18997373,3261.4,3261.3,0.1226]
[1642116939735,1.18997373,3261.4,3261.3,1.6705399]
[1642116939987,1.31257373,3261.4,3261.3,1.5479399]
[1642116940191,1.61257373,3261.4,3261.3,1.5479399]
[1642116940782,1.61257373,3261.4,3261.2,1.5479399]
[1642116940982,0.1226,3261.3,3261.2,1.5479399]
[1642116942184,1.18997373,3261.4,3261.2,1.5479399]
[1642116943656,1.18997373,3261.4,3261.3,1.5479399]
[1642116944446,1.18997373,3261.4,3261.1,4.19493855]
[1642116945548,1.18997373,3261.4,3261.2,0.1226]
[1642116947484,1.18997373,3261.4,3261.3,2.63388487]
[1642116950991,1.18997373,3261.4,3261.3,1.54876634]
[1642116951450,1.18997373,3261.4,3261.3,2.54876634]
[1642116951863,1.18997373,3261.4,3261.3,1.0]
[1642116952950,1.18997373,3261.4,3261.3,3.63388487]
[1642116956986,1.18997373,3261.4,3261.3,2.63388487]
[1642116958192,1.48997373,3261.4,3261.3,2.63388487]
[1642116958643,1.18997373,3261.4,3261.1,2.63388487]
[1642116959236,1.18997373,3261.4,3261.3,2.63388487]
[1642116960237,1.18997373,3261.4,3261.3,6.05215602]
[1642116960436,1.18997373,3261.4,3261.3,3.54087115]
[1642116960635,1.18997373,3261.4,3261.3,4.41827115]
[1642116961238,1.18997373,3261.4,3261.3,7.05215602]
[1642116964690,1.18997373,3261.4,3261.3,7.17475602]
[1642116965289,1.18997373,3261.4,3261.3,8.71505341]
[1642116966541,1.18883689,3261.4,3261.3,8.59245341]
[1642116967339,1.13430303,3261.4,3261.3,8.59245341]
[1642116967539,1.13430303,3261.4,3261.3,5.17418226]
[1642116967739,1.13430303,3261.4,3261.3,8.58929739]
[1642116968742,1.13430303,3261.4,3261.3,3.63388487]
[1642116969138,1.13430303,3261.4,3261.3,2.63388487]
[1642116972186,1.13430303,3261.4,3261.2,1.53647645]
[1642116972386,1.34147034,3261.3,3261.2,1.53647645]
[1642116973645,1.34147034,3261.3,3261.0,2.30579855]
[1642116976840,2.74827034,3261.3,3261.0,2.30579855]
[1642116977039,2.74827034,3261.3,3261.1,1.54020667]
[1642116977240,0.3,3261.2,3261.1,1.54020667]
[1642116977490,0.4226,3261.2,3261.1,1.54020667]
[1642116978088,0.1226,3261.2,3260.6,1.54020667]
[1642116978290,1.64147034,3261.3,3260.7,3.62453394]
[1642116978291,1.23245141,3260.8,3260.7,3.62453394]
[1642116978491,1.23245141,3260.8,3260.7,0.00284212]
[1642116978688,1.23245141,3260.8,3260.7,1.00284212]
[1642116978889,1.23245141,3260.8,3260.7,0.00284212]
[1642116979090,1.23245141,3260.8,3260.7,3.42718709]
[1642116979293,1.23245141,3260.8,3260.7,1.12544212]
[1642116979491,1.23245141,3260.8,3260.7,1.89207212]
[1642116979692,1.23245141,3260.8,3260.7,0.89207212]
[1642116980291,1.23245141,3260.8,3260.7,0.00284212]
[1642116981338,1.23245141,3260.8,3260.7,3.27188867]
[1642116981535,1.23245141,3260.8,3260.7,3.25683414]
[1642116981838,1.23245141,3260.8,3260.7,0.00284212]
[1642116982537,1.23245141,3260.8,3260.7,4.81423259]
[1642116982937,1.23245141,3260.8,3260.7,4.89112226]
[1642116983137,1.23245141,3260.8,3260.7,5.01972255]
[1642116983338,2.74321764,3260.8,3260.7,0.00284212]
[1642116984739,2.74321764,3260.8,3260.7,3.29529399]
[1642116984987,1.23245141,3260.8,3260.7,3.29529399]
[1642116985487,1.23245141,3260.8,3260.7,3.27877892]
[1642116985688,1.23245141,3260.8,3260.7,0.00284212]
[1642116986587,2.70466313,3260.8,3260.7,0.00284212]
[1642116987187,2.70466313,3260.8,3260.6,0.00341054]
[1642116987790,2.70466313,3260.8,3260.7,1.53627941]
[1642116989440,2.70466313,3260.8,3260.6,1.12601054]
[1642116989643,2.70466313,3260.8,3260.7,2.63431065]
[1642116990040,2.70466313,3260.8,3260.7,3.63431065]
[1642116990842,2.70466313,3260.8,3260.7,2.63431065]
[1642116992043,2.70466313,3260.8,3260.7,1.5415656]
[1642116993694,2.70466313,3260.8,3260.6,1.54497614]
[1642116995497,2.70466313,3260.8,3260.7,1.5415656]
[1642116996142,2.70466313,3260.8,3260.7,2.63431065]
[1642116996936,3.00466313,3260.8,3260.7,1.54572842]
[1642116998036,2.70466313,3260.8,3260.7,1.54572842]
[1642116999038,2.70466313,3260.8,3260.6,0.00341054]
[1642116999898,2.70466313,3260.8,3260.7,2.30579855]
[1642117007993,2.70466313,3260.8,3260.6,2.63772119]
[1642117009193,2.70466313,3260.8,3260.7,2.63431065]
[1642117010196,1.23245141,3260.8,3260.7,2.54511327]
[1642117010399,1.23245141,3260.8,3260.7,4.86234775]
[1642117010603,1.23245141,3260.8,3260.7,5.86234775]
[1642117010796,1.23245141,3260.8,3260.7,4.86234775]
[1642117011000,1.23245141,3260.8,3260.7,2.63431065]
[1642117011254,0.1226,3260.9,3260.7,2.63431065]
[1642117011647,0.1226,3260.9,3260.8,2.85070862]
[1642117011848,0.1226,3260.9,3260.8,0.0022737]
[1642117012049,1.46837246,3260.9,3260.8,0.0022737]
[1642117012447,1.34577246,3260.9,3260.8,0.0022737]
[1642117012848,2.46027676,3260.9,3260.8,0.0022737]
[1642117013155,2.46027676,3260.9,3260.8,4.17996979]
[1642117013549,2.49526476,3260.9,3260.8,4.17996979]
[1642117014347,2.49526476,3260.9,3260.8,0.0022737]
[1642117014548,2.61786476,3260.9,3260.8,0.0022737]
[1642117015590,2.61786476,3260.9,3260.8,1.54565914]
[1642117016390,2.61786476,3260.9,3260.8,0.0022737]
[1642117016791,2.49526476,3260.9,3260.8,0.0022737]
[1642117017193,2.49526476,3260.9,3260.6,1.54338544]
[1642117017392,2.49526476,3260.9,3260.7,4.17769609]
[1642117018192,2.49526476,3260.9,3260.8,1.54338544]
[1642117018396,2.46027676,3260.9,3260.8,1.54338544]
[1642117019737,2.46027676,3260.9,3260.7,1.54338544]
[1642117020137,0.045463,3260.8,3260.7,1.54338544]
[1642117020637,0.045463,3260.8,3260.7,2.63431065]
[1642117021439,0.045463,3260.8,3260.6,2.31509479]
[1642117021640,0.045463,3260.7,3260.4,4.9495238]
[1642117022038,0.045463,3260.7,3260.5,0.00170527]
[1642117022238,0.045463,3260.6,3260.5,0.00170527]
[1642117029044,0.1226,3260.8,3260.5,0.00170527]
[1642117029045,0.027278,3260.7,3260.5,0.00170527]
[1642117030391,0.027278,3260.7,3260.5,2.31680006]
[1642117030792,0.027278,3260.7,3260.6,0.00113684]
[1642117037790,0.027278,3260.8,3260.6,0.00113684]
[1642117038191,0.7941257,3260.8,3260.6,0.00113684]
[1642117040090,0.7941257,3260.8,3260.6,1.54945133]
[1642117041145,0.7941257,3260.8,3260.6,0.00113684]
[1642117041540,0.7941257,3260.8,3260.4,0.00227369]
[1642117041940,0.7941257,3260.8,3260.4,2.63681057]
[1642117043942,4.424597,3260.8,3260.4,2.63681057]
[1642117044142,0.7941257,3260.8,3260.4,2.63681057]
[1642117044746,0.7668477,3260.8,3260.4,2.63681057]
[1642117044995,1.5792711,3260.7,3260.4,2.63681057]
[1642117045390,0.6,3260.6,3260.4,2.63681057]
[1642117045591,1.3668983,3260.6,3260.4,2.63681057]
[1642117046393,1.3668983,3260.6,3260.1,4.0751]
[1642117046394,3.77836734,3260.5,3260.1,0.1226]
[1642117046594,0.045463,3260.4,3260.1,0.1226]
[1642117046793,3.77836734,3260.5,3259.6,3.95106924]
[1642117046794,0.045463,3260.2,3259.6,3.95106924]
[1642117046996,3.92316734,3260.5,3259.8,3.95106924]
[1642117046997,0.5627,3260.1,3259.8,3.95106924]
[1642117047191,1.24541155,3259.9,3259.7,0.00397897]
[1642117047393,0.812783,3259.8,3259.7,0.00397897]
[1642117047595,1.235483,3259.8,3259.7,0.00397897]
[1642117047895,1.235483,3259.8,3259.4,0.00568424]
[1642117047896,0.76735,3259.6,3259.4,0.00568424]
[1642117048091,0.4227,3259.5,3259.4,0.00568424]
[1642117048292,0.762036,3259.5,3259.4,0.00568424]
[1642117048758,0.762036,3259.5,3258.9,0.00852635]
[1642117048958,1.41464773,3258.9,3258.5,0.01080005]
[1642117049158,1.41464773,3258.9,3258.4,0.01136847]
[1642117049358,0.3,3258.9,3258.6,0.01233496]
[1642117049759,0.44,3260.1,3258.6,0.01233496]
[1642117049760,0.027278,3259.1,3258.6,0.01233496]
[1642117049958,0.027278,3259.1,3258.7,0.0096632]
[1642117049959,0.030653,3259.1,3258.7,0.0096632]
[1642117050559,0.030653,3259.1,3258.8,0.1227]
[1642117050968,0.030653,3259.1,3258.9,0.00852635]
[1642117051561,0.030653,3259.1,3258.8,0.00909478]
[1642117055098,0.030653,3259.1,3258.8,3.12734911]
[1642117055498,0.030653,3259.1,3258.9,0.00852635]
[1642117055696,0.030653,3259.1,3259.0,2.33967508]
[1642117056146,0.030653,3259.1,3259.0,2.34763301]
[1642117056547,2.06940009,3259.2,3259.0,2.34763301]
[1642117056745,2.06940009,3259.2,3259.0,0.00795793]
[1642117057348,2.06940009,3259.2,3259.1,0.00738951]
[1642117057545,2.06940009,3259.2,3258.9,2.33967508]
[1642117057546,2.06940009,3259.2,3259.0,0.00795793]
[1642117058747,2.06940009,3259.2,3259.1,2.33967508]
[1642117059148,2.06940009,3259.2,3259.1,2.34706459]
[1642117062590,0.627278,3259.2,3259.1,2.29706459]
[1642117062788,0.327278,3259.2,3259.1,2.29706459]
[1642117063655,0.327278,3259.2,3259.1,0.00738951]
[1642117064056,0.327278,3259.2,3259.0,0.00795793]
[1642117064452,0.327278,3259.2,3258.8,0.00909478]
[1642117064652,1.45323899,3259.1,3258.8,0.00909478]
[1642117064853,1.78390199,3259.1,3258.8,0.00909478]
[1642117066953,1.78390199,3259.1,3258.9,2.63541192]
[1642117067398,1.78390199,3259.1,3259.0,0.00795793]
[1642117067994,0.030663,3259.1,3259.0,0.00795793]
[1642117068193,0.3,3259.1,3259.0,0.00795793]
[1642117068394,0.027278,3259.2,3259.0,0.00795793]
[1642117068595,0.327278,3259.2,3259.0,0.00795793]
[1642117068794,0.327278,3259.2,3259.0,2.64336985]
[1642117069195,0.327278,3259.2,3259.1,0.00738951]
[1642117069594,0.327278,3259.2,3259.1,2.64280143]
[1642117070795,0.1227,3259.7,3259.1,2.64280143]
[1642117070997,0.045463,3259.6,3259.1,2.64280143]
[1642117071247,0.045463,3259.6,3259.2,0.00682108]
[1642117072251,0.1227,3259.7,3259.2,0.00682108]
[1642117072252,0.045463,3259.5,3259.3,2.63541192]
[1642117072652,0.045463,3259.5,3259.4,0.00568424]
[1642117073949,0.045463,3259.5,3259.4,2.64109616]
[1642117077895,0.6,3259.6,3259.4,2.64109616]
[1642117078096,0.327278,3259.6,3259.4,2.64109616]
[1642117078299,0.627278,3259.6,3259.5,0.00511581]
[1642117078946,0.3,3259.6,3259.5,0.00511581]
[1642117079145,0.3,3259.6,3259.5,2.64052773]
[1642117079546,1.85097301,3259.7,3259.5,2.64052773]
[1642117079745,0.3,3259.6,3259.5,2.64052773]
[1642117079946,0.3,3259.6,3259.5,2.63541192]
[1642117080647,0.345463,3259.6,3259.5,2.63541192]
[1642117081258,0.468163,3259.6,3259.5,2.63541192]
[1642117082050,0.468163,3259.6,3259.2,2.63541192]
[1642117082250,0.045463,3259.4,3259.2,2.63541192]
[1642117082492,0.045463,3259.4,3259.3,0.00625266]
[1642117084893,0.045463,3259.4,3259.3,2.64166458]
[1642117085293,0.149978,3259.5,3259.3,2.64166458]
[1642117085497,0.027278,3259.6,3259.3,2.64166458]
[1642117085794,0.027278,3259.6,3259.4,0.00568424]
[1642117086648,0.027278,3259.6,3259.5,2.63541192]
[1642117087147,0.027278,3259.6,3259.5,2.64052773]
[1642117089452,0.027278,3259.6,3259.5,0.00511581]
[1642117089902,0.027278,3259.6,3259.2,0.00682108]
[1642117090094,0.045463,3259.4,3259.2,0.00682108]
[1642117091100,0.045463,3259.4,3259.3,2.635619]
[1642117091396,0.027278,3259.5,3259.3,2.635619]
[1642117091796,0.027278,3259.5,3259.4,0.00568424]
[1642117092697,0.027278,3259.6,3259.4,0.00568424]
[1642117092898,0.032671,3259.7,3259.4,0.00568424]
[1642117093499,0.032671,3259.7,3259.5,2.635619]
[1642117093943,0.032671,3259.7,3259.6,0.00454739]
[1642117094146,0.032671,3259.7,3259.5,2.59016639]
[1642117095143,0.032671,3259.7,3259.4,1.54754203]
[1642117095343,0.032671,3259.7,3259.3,1.54754203]
[1642117095543,0.045463,3259.6,3259.3,1.54754203]
[1642117095744,0.045463,3259.6,3259.4,0.00113685]
[1642117096043,0.045463,3259.6,3259.4,1.54867888]
[1642117097896,0.045463,3259.5,3259.4,1.54867888]
[1642117098093,0.045463,3259.6,3259.4,1.54867888]
[1642117098594,0.345463,3259.6,3259.4,1.54867888]
[1642117098897,0.345463,3259.6,3259.3,1.49867888]
[1642117100699,0.345463,3259.6,3259.1,1.2259]
[1642117100896,0.3,3259.6,3259.1,1.2259]
[1642117101149,0.045463,3259.5,3259.2,0.00113684]
[1642117101350,0.168163,3259.5,3259.2,0.00113684]
[1642117102251,0.327278,3259.6,3259.2,0.00113684]
[1642117103551,0.045463,3259.5,3259.2,0.00113684]
[1642117106513,0.045463,3259.4,3259.2,0.00113684]
[1642117108014,1.82363604,3259.7,3259.2,0.00113684]
[1642117108214,0.027278,3259.6,3259.2,0.00113684]
[1642117108414,0.02841485,3259.6,3259.2,0.00113684]
[1642117109548,0.03054785,3259.6,3259.2,0.00113684]
[1642117109751,0.33054785,3259.6,3259.2,1.56077327]
[1642117110351,0.04492,3259.5,3259.2,1.56077327]
[1642117110752,0.04492,3259.5,3259.2,0.00113684]
[1642117114401,0.04492,3259.5,3259.2,4.19645682]
[1642117115598,0.04492,3259.5,3259.3,2.63568355]
[1642117116446,0.04492,3259.5,3259.2,2.63682039]
[1642117117347,0.04492,3259.5,3259.2,4.19645682]
[1642117119048,0.04492,3259.5,3259.3,2.63568355]
[1642117119455,0.04724312,3259.8,3259.5,0.04541059]
[1642117119655,0.021822,3260.2,3259.5,0.727]
[1642117119903,0.021822,3260.4,3259.6,0.1226]
[1642117120196,0.00284212,3260.1,3259.6,1.3678]
[1642117120598,0.00227369,3260.0,3259.6,1.3678]
[1642117120996,0.00170527,3259.9,3259.6,2.13469]
[1642117121296,0.021822,3260.2,3259.8,0.7668341]
[1642117121497,0.021822,3260.2,3259.9,0.1226]
[1642117121694,1.17013034,3260.3,3259.9,0.1226]
[1642117121695,0.00284212,3260.1,3259.9,0.1226]
[1642117122095,0.00227369,3260.0,3259.9,0.1226]
[1642117122895,0.00227369,3260.0,3259.9,0.88939]
[1642117123095,0.00227369,3260.0,3259.9,3.88902643]
[1642117123953,0.00227369,3260.0,3259.9,2.32939]
[1642117125355,0.00227369,3260.0,3259.9,1.88939]
[1642117125758,0.00227369,3260.0,3259.9,3.44774896]
[1642117126958,0.00227369,3260.0,3259.9,1.68095896]
[1642117127157,0.02472069,3260.0,3259.9,1.68095896]
[1642117127601,0.00227369,3260.0,3259.9,1.68095896]
[1642117127997,0.00227369,3260.0,3259.9,1.55835896]
[1642117128799,0.00227369,3260.0,3259.8,1.0]
[1642117129298,0.00170527,3259.9,3259.8,1.0]
[1642117130999,0.00170527,3259.9,3259.7,5.48807596]
[1642117131447,0.00113685,3259.8,3259.7,3.1628]
[1642117131647,0.00113685,3259.8,3259.6,8.75644696]
[1642117131849,0.00227369,3259.8,3259.6,8.75644696]
[1642117132450,0.00227369,3259.8,3259.6,7.198088]
[1642117133449,0.00227369,3259.8,3259.6,8.75644696]
[1642117133651,0.00227369,3259.8,3259.6,9.52335696]
[1642117133850,0.00227369,3259.8,3259.7,0.1227]
[1642117134650,0.00227369,3259.8,3259.7,1.68105896]
[1642117135102,0.1227,3260.7,3259.7,5.03021087]
[1642117135303,0.1227,3260.7,3260.1,0.76685]
[1642117135505,0.00341055,3260.6,3260.1,0.76685]
[1642117135903,0.00284212,3260.5,3260.1,0.76685]
[1642117136302,0.0022737,3260.4,3260.1,0.76685]
[1642117136703,0.00170527,3260.3,3260.1,0.76685]
[1642117137103,0.00113685,3260.2,3260.1,0.76685]
[1642117137305,0.00113685,3260.2,3260.1,0.69016054]
[1642117137603,0.0022737,3260.2,3260.1,0.69016054]
[1642117138203,0.0022737,3260.2,3260.1,3.32539066]
[1642117140145,0.0022737,3260.2,3260.1,4.45919066]
[1642117143302,0.0022737,3260.2,3260.1,3.76903012]
[1642117143499,0.0022737,3260.2,3260.1,2.63523012]
[1642117144299,0.1248737,3260.2,3260.1,2.63523012]
[1642117145100,0.1248737,3260.2,3259.8,5.65075873]
[1642117145101,0.0022737,3260.2,3259.9,3.40214122]
[1642117146148,0.0022737,3260.2,3260.0,2.63523012]
[1642117148249,0.0022737,3260.2,3260.0,3.40205012]
[1642117148451,0.0022737,3260.2,3260.0,6.55213576]
[1642117148651,0.0022737,3260.2,3260.0,6.55183458]
[1642117148849,0.0022737,3260.2,3260.1,0.1226]
[1642117149906,0.0022737,3260.2,3260.1,2.75783012]
[1642117152506,0.0022737,3260.2,3260.1,2.63523012]
[1642117153505,0.0022737,3260.2,3260.1,3.40202012]
[1642117153949,0.0022737,3260.2,3260.1,2.63523012]
[1642117154448,0.0022737,3260.2,3260.0,2.63523012]
[1642117156148,0.0022737,3260.2,3260.0,6.53181215]
[1642117156351,0.0022737,3260.2,3260.1,3.15363135]
[1642117156951,0.1226,3260.7,3260.1,3.15363135]
[1642117157149,0.1226,3260.7,3260.2,1.5331904]
[1642117157404,0.00113685,3260.6,3260.3,4.61104974]
[1642117157801,0.00113685,3260.6,3260.3,5.83954974]
[1642117158400,0.00113685,3260.6,3260.4,0.76661]
[1642117158600,0.00113685,3260.6,3260.5,3.86078215]
[1642117158801,0.00113685,3260.6,3260.5,6.38599505]
[1642117159003,0.00113685,3260.6,3260.5,5.03396158]
[1642117159300,0.00113685,3260.6,3260.5,5.41406483]
[1642117161004,0.00113685,3260.6,3260.5,8.04929495]
[1642117161254,0.07373685,3260.7,3260.5,8.04929495]
[1642117161453,0.07373685,3260.7,3260.6,3.52402592]
[1642117161654,0.07373685,3260.7,3260.6,4.29059642]
[1642117162852,0.07373685,3260.7,3260.6,8.4802217]
[1642117163658,0.07373685,3260.7,3260.6,6.92582654]
[1642117164055,0.6,3261.4,3260.6,6.92582654]
[1642117164257,0.6,3261.4,3260.6,7.69249654]
[1642117164456,0.60454738,3261.4,3260.6,7.69249654]
[1642117164655,0.60454738,3261.4,3260.6,6.92592604]